[Event "FIDE WCCC Open-10 2024"]
[Site "Montesilvano"]
[Date "2024.11.18"]
[Round "4.1"]
[White "Annapureddy, Rheyansh Reddy"]
[Black "Ismailov, Omarbek"]
[Result "1/2-1/2"]
[ECO "B45"]
[WhiteElo "2122"]
[BlackElo "1625"]
[Annotator "RC"]
[PlyCount "75"]
[EventDate "2024.11.18"]
[EventType "swiss"]
[EventCountry "ITA"]
[SourceTitle "playchess.com"]
[Source "ChessBase"]
[SourceQuality "1"]
[TimeControl "5400+30"]

1. e4 {[%emt 0:00:08]} c5 {[%emt 0:00:12]} 2. Nf3 {[%emt 0:00:07]} Nc6 {[%emt 0:00:08]} 3. d4 {[%emt 0:00:07]} cxd4 {[%emt 0:00:46]} 4. Nxd4 {[%emt 0:00:09]} Nf6 {[%emt 0:00:54]} 5. Nc3 {[%emt 0:00:14]} e6 {[%emt 0:01:11]} 6. Nxc6 {[%emt 0:00:09]} bxc6 {[%emt 0:00:07]} 7. e5 {[%emt 0:00:06]} Nd5 {[%emt 0:00:10]} 8. Ne4 {[%emt 0:00:06]} Qc7 {[%emt 0:21:16]} 9. f4 {[%emt 0:00:19]} a5 {[%emt 0:02:54]} 10. c4 {[%emt 0:02:50]} Bb4+ {[%emt 0:00:07]} 11. Kf2 {[%emt 0:06:11]} Qb6+ {[%emt 0:01:55]} 12. Kf3 {[%emt 0:00:39]} f5 {[%emt 0:02:24]} 13. Nf2 {[%emt 0:03:14]} Ne7 {[%emt 0:08:52]} 14. Be3 {[%emt 0:17:12]} Bc5 {[%emt 0:00:56]} 15. Bxc5 {[%emt 0:00:15]} Qxc5 {[%emt 0:00:09]} 16. Qd6 {[%emt 0:01:31]} Qb6 {[%emt 0:03:08]} 17. Nd3 {[%emt 0:01:44]} g5 {[%emt 0:11:30]} 18. fxg5 {[%emt 0:02:54]} f4 {[%emt 0:00:33]} 19. Qc5 {[%emt 0:02:54]} Qb7 {[%emt 0:01:51]} 20. Re1 {[%emt 0:04:22]} Rf8 {[%emt 0:07:18]} 21. Re4 {[%emt 0:02:30]} a4 {[%emt 0:07:17]} 22. Rxf4 {[%emt 0:08:53]} Rxf4+ {[%emt 0:00:24]} 23. Kxf4 {[%emt 0:00:08]} Qc7 {[%emt 0:01:28]} 24. g4 {[%emt 0:06:44]} Ra5 {[%emt 0:01:10]} 25. Qd6 {[%emt 0:00:56]} Qa7 {[%emt 0:03:44]} 26. Ke4 {[%emt 0:06:01]} Bb7 {[%emt 0:06:07]} 27. c5 {[%emt 0:05:02]} Nd5 {[%emt 0:00:48]} 28. Be2 {[%emt 0:02:20]} Ba6 {[%emt 0:01:07]} 29. Rf1 {[%emt 0:01:05]} Ne7 {[%emt 0:00:14]} 30. g6 {[%emt 0:04:27]} hxg6 {[%emt 0:04:49]} 31. Kd4 {[%emt 0:01:28]} Qb7 {[%emt 0:01:16]} 32. Kc3 {[%emt 0:02:42]} Bxd3 {[%emt 0:01:22]} 33. Bxd3 {[%emt 0:01:07]} Nd5+ {[%emt 0:00:17]} 34. Kc2 {[%emt 0:01:51]} Ne3+ {[%emt 0:00:18]} 35. Kc3 {[%emt 0:00:34]} Nxf1 {[%emt 0:01:00]} 36. Bxg6+ {[%emt 0:02:10]} Kd8 {[%emt 0:00:07]} 37. Qf8+ {[%emt 0:00:11]} Kc7 {[%emt 0:00:08]} 38. Qd6+ {[%emt 0:00:07]} 1/2-1/2

[Event "FIDE WCCC Open-10 2024"]
[Site "Montesilvano"]
[Date "2024.11.18"]
[Round "4.1"]
[White "Zhauynbay, Alimzhan"]
[Black "Sameh Mohamed, Abdalrahman"]
[Result "0-1"]
[ECO "C89"]
[WhiteElo "1953"]
[BlackElo "2238"]
[Annotator "RC"]
[PlyCount "58"]
[EventDate "2024.11.18"]
[EventType "swiss"]
[EventCountry "ITA"]
[SourceTitle "playchess.com"]
[Source "ChessBase"]
[SourceQuality "1"]
[TimeControl "5400+30"]

1. e4 {[%emt 0:00:04]} e5 {[%emt 0:00:07]} 2. Nf3 {[%emt 0:00:04]} Nc6 {[%emt 0:00:08]} 3. Bb5 {[%emt 0:00:06]} a6 {[%emt 0:00:18]} 4. Ba4 {[%emt 0:00:05]} Nf6 {[%emt 0:00:06]} 5. O-O {[%emt 0:00:05]} Be7 {[%emt 0:00:10]} 6. Re1 {[%emt 0:00:18]} b5 {[%emt 0:00:06]} 7. Bb3 {[%emt 0:00:04]} O-O {[%emt 0:00:07]} 8. c3 {[%emt 0:02:28]} d5 {[%emt 0:00:28]} 9. exd5 {[%emt 0:01:50]} Nxd5 {[%emt 0:00:05]} 10. Nxe5 {[%emt 0:04:38]} Nxe5 {[%emt 0:00:05]} 11. Rxe5 {[%emt 0:00:04]} c6 {[%emt 0:00:06]} 12. d4 {[%emt 0:04:23]} Bd6 {[%emt 0:00:03]} 13. Re1 {[%emt 0:00:28]} Qh4 {[%emt 0:00:06]} 14. g3 {[%emt 0:01:56]} Qh3 {[%emt 0:00:04]} 15. Re4 {[%emt 0:07:49]} g5 {[%emt 0:00:08]} 16. Bc2 {[%emt 0:28:10]} f5 {[%emt 0:10:55]} 17. Re1 {[%emt 0:24:55]} f4 {[%emt 0:02:25]} 18. Be4 {[%emt 0:00:46]} fxg3 {[%emt 0:05:51]} 19. fxg3 {[%emt 0:00:36]} Bxg3 {[%emt 0:00:21]} 20. Re2 {[%emt 0:03:32]} Bg4 {[%emt 0:02:25]} 21. hxg3 {[%emt 0:00:46]} Bxe2 {[%emt 0:00:15]} 22. Qxe2 {[%emt 0:00:07]} Qxg3+ {[%emt 0:00:06]} 23. Kh1 {[%emt 0:00:47]} Rf2 {[%emt 0:00:24]} 24. Bxd5+ {[%emt 0:01:53]} Kf8 {[%emt 0:00:43]} 25. Bf4 {[%emt 0:01:31]} Qh3+ {[%emt 0:00:26]} 26. Kg1 {[%emt 0:00:02]} Rxe2 {[%emt 0:00:23]} 27. Bd6+ {[%emt 0:00:01]} Kg7 {[%emt 0:00:21]} 28. Bxc6 {[%emt 0:00:15]} Qe3+ {[%emt 0:00:21]} 29. Kh1 {[%emt 0:00:11]} Qc1# {[%emt 0:00:08]} 0-1

[Event "FIDE WCCC Open-10 2024"]
[Site "Montesilvano"]
[Date "2024.11.18"]
[Round "4.2"]
[White "Shogdzhiev, Roman"]
[Black "Mulay, Vivan Prakash"]
[Result "1-0"]
[ECO "B81"]
[WhiteElo "2202"]
[BlackElo "1823"]
[Annotator "RC"]
[PlyCount "63"]
[EventDate "2024.11.18"]
[EventType "swiss"]
[EventCountry "ITA"]
[SourceTitle "playchess.com"]
[Source "ChessBase"]
[SourceQuality "1"]
[TimeControl "5400+30"]

1. e4 {[%emt 0:00:00]} c5 {[%emt 0:00:26]} 2. Nf3 {[%emt 0:00:02]} d6 {[%emt 0:00:11]} 3. d4 {[%emt 0:00:01]} cxd4 {[%emt 0:00:10]} 4. Nxd4 {[%emt 0:00:00]} Nf6 {[%emt 0:00:10]} 5. Nc3 {[%emt 0:00:00]} a6 {[%emt 0:00:15]} 6. h3 {[%emt 0:00:01]} e6 {[%emt 0:00:20]} 7. g4 {[%emt 0:00:05]} b5 {[%emt 0:00:05]} 8. g5 {[%emt 0:04:17]} Nfd7 {[%emt 0:00:32]} 9. a3 {[%emt 0:03:34]} Bb7 {[%emt 0:02:00]} 10. Be3 {[%emt 0:03:15]} Be7 {[%emt 0:01:44]} 11. h4 {[%emt 0:01:23]} Nb6 {[%emt 0:11:59]} 12. Rg1 {[%emt 0:17:19]} N8d7 {[%emt 0:04:51]} 13. h5 {[%emt 0:06:44]} Ne5 {[%emt 0:15:11]} 14. g6 {[%emt 0:00:24]} hxg6 {[%emt 0:00:24]} 15. hxg6 {[%emt 0:00:02]} Nbc4 {[%emt 0:00:26]} 16. gxf7+ {[%emt 0:00:59]} Kxf7 {[%emt 0:00:09]} 17. Rxg7+ {[%emt 0:01:16]} Kxg7 {[%emt 0:00:02]} 18. Nxe6+ {[%emt 0:00:22]} Kf7 {[%emt 0:00:12]} 19. Nxd8+ {[%emt 0:00:04]} Raxd8 {[%emt 0:00:16]} 20. Qe2 {[%emt 0:17:46]} Nxb2 {[%emt 0:07:35]} 21. Bd4 {[%emt 0:00:19]} Bg5 {[%emt 0:07:01]} 22. Nxb5 {[%emt 0:06:35]} axb5 {[%emt 0:07:54]} 23. Bxb2 {[%emt 0:00:13]} Rh4 {[%emt 0:00:22]} 24. Qxb5 {[%emt 0:07:47]} Rxe4+ {[%emt 0:08:59]} 25. Kd1 {[%emt 0:01:14]} Ba8 {[%emt 0:00:22]} 26. Bg2 {[%emt 0:00:37]} d5 {[%emt 0:05:23]} 27. Bxe4 {[%emt 0:05:06]} dxe4+ {[%emt 0:00:05]} 28. Ke2 {[%emt 0:00:11]} Rd2+ {[%emt 0:01:35]} 29. Kf1 {[%emt 0:01:20]} e3 {[%emt 0:01:21]} 30. Qxe5 {[%emt 0:01:47]} Rxf2+ {[%emt 0:00:52]} 31. Ke1 {[%emt 0:00:00]} Bh4 {[%emt 0:00:18]} 32. Qh5+ {[%emt 0:00:05]} 1-0

[Event "FIDE WCCC Open-10 2024"]
[Site "Montesilvano"]
[Date "2024.11.18"]
[Round "4.2"]
[White "Kalinichenko, German Yu"]
[Black "Chen, Chicheng Leon"]
[Result "0-1"]
[ECO "B87"]
[WhiteElo "1621"]
[BlackElo "1987"]
[Annotator "RC"]
[PlyCount "106"]
[EventDate "2024.11.18"]
[EventType "swiss"]
[EventCountry "ITA"]
[SourceTitle "playchess.com"]
[Source "ChessBase"]
[SourceQuality "1"]
[TimeControl "5400+30"]

1. e4 {[%emt 0:00:03]} c5 {[%emt 0:00:04]} 2. Nf3 {[%emt 0:00:18]} d6 {[%emt 0:00:06]} 3. d4 {[%emt 0:00:06]} cxd4 {[%emt 0:00:07]} 4. Nxd4 {[%emt 0:00:04]} Nf6 {[%emt 0:00:09]} 5. Nc3 {[%emt 0:00:09]} a6 {[%emt 0:00:10]} 6. Bc4 {[%emt 0:00:28]} e6 {[%emt 0:00:07]} 7. Bb3 {[%emt 0:01:07]} b5 {[%emt 0:00:15]} 8. Be3 {[%emt 0:09:03]} Be7 {[%emt 0:00:17]} 9. a3 {[%emt 0:03:03]} O-O {[%emt 0:02:01]} 10. Qe2 {[%emt 0:00:33]} Bb7 {[%emt 0:00:20]} 11. f3 {[%emt 0:00:20]} Nc6 {[%emt 0:00:21]} 12. O-O-O {[%emt 0:02:05]} Na5 {[%emt 0:00:30]} 13. g4 {[%emt 0:01:38]} Nd7 {[%emt 0:00:50]} 14. Bxe6 {[%emt 0:02:17]} fxe6 {[%emt 0:00:41]} 15. Nxe6 {[%emt 0:00:03]} Qe8 {[%emt 0:05:56]} 16. Nxf8 {[%emt 0:00:13]} Qxf8 {[%emt 0:04:54]} 17. Nd5 {[%emt 0:02:40]} Rc8 {[%emt 0:15:40]} 18. Nxe7+ {[%emt 0:00:49]} Qxe7 {[%emt 0:00:12]} 19. h4 {[%emt 0:01:13]} Ne5 {[%emt 0:04:01]} 20. Bd2 {[%emt 0:04:09]} Nb3+ {[%emt 0:02:58]} 21. Kb1 {[%emt 0:00:05]} Rxc2 {[%emt 0:05:38]} 22. Qe3 {[%emt 0:01:50]} Rxb2+ {[%emt 0:24:41]} 23. Kxb2 {[%emt 0:00:04]} Nc4+ {[%emt 0:00:08]} 24. Kxb3 {[%emt 0:00:03]} Nxe3 {[%emt 0:00:10]} 25. Bxe3 {[%emt 0:00:03]} Qf7+ {[%emt 0:00:23]} 26. Kb2 {[%emt 0:00:34]} Qxf3 {[%emt 0:00:11]} 27. Rhe1 {[%emt 0:01:32]} Bxe4 {[%emt 0:04:58]} 28. Rxd6 {[%emt 0:00:43]} Qg2+ {[%emt 0:04:47]} 29. Rd2 {[%emt 0:00:49]} Qxg4 {[%emt 0:01:20]} 30. Rg1 {[%emt 0:02:58]} Qf3 {[%emt 0:05:16]} 31. Bc5 {[%emt 0:01:54]} Bd5 {[%emt 0:01:26]} 32. Rc2 {[%emt 0:07:07]} Qb3+ {[%emt 0:00:35]} 33. Kc1 {[%emt 0:00:08]} Be4 {[%emt 0:00:19]} 34. Rgg2 {[%emt 0:01:35]} Bxg2 {[%emt 0:00:30]} 35. Rxg2 {[%emt 0:00:11]} Qc4+ {[%emt 0:17:59]} 36. Rc2 {[%emt 0:00:11]} Qxh4 {[%emt 0:00:00]} 37. Bb4 {[%emt 0:00:11]} Qg4 {[%emt 0:00:00]} 38. Kb2 {[%emt 0:01:27]} h5 {[%emt 0:00:00]} 39. Bc3 {[%emt 0:00:52]} h4 {[%emt 0:00:00]} 40. Rh2 {[%emt 0:00:15]} Qg3 {[%emt 0:00:00]} 41. Re2 {[%emt 0:00:34]} h3 {[%emt 0:00:00]} 42. Be5 {[%emt 0:00:12]} Qd3 {[%emt 0:00:00]} 43. Rh2 {[%emt 0:00:20]} Qe3 {[%emt 0:00:00]} 44. Bc7 {[%emt 0:00:46]} g5 {[%emt 0:00:00]} 45. Rc2 {[%emt 0:00:39]} g4 {[%emt 0:00:00]} 46. Rh2 {[%emt 0:00:05]} Kf7 {[%emt 0:00:00]} 47. Bb8 {[%emt 0:00:34]} Ke8 {[%emt 0:00:00]} 48. Kc2 {[%emt 0:00:20]} Kd7 {[%emt 0:00:00]} 49. Kd1 {[%emt 0:00:23]} Kc8 {[%emt 0:00:00]} 50. Bd6 {[%emt 0:00:30]} g3 {[%emt 0:00:00]} 51. Rxh3 {[%emt 0:00:19]} Qd3+ {[%emt 0:00:00]} 52. Ke1 {[%emt 0:00:16]} Qxd6 {[%emt 0:00:00]} 53. Kf1 {[%emt 0:00:08]} Qf4+ {[%emt 0:00:00]} 0-1

[Event "FIDE WCCC Open-10 2024"]
[Site "Montesilvano"]
[Date "2024.11.18"]
[Round "4.3"]
[White "Zhu, Linxi"]
[Black "Tulegen, Ramazan"]
[Result "1/2-1/2"]
[ECO "C10"]
[WhiteElo "2100"]
[BlackElo "1818"]
[Annotator "ChessBase"]
[PlyCount "257"]
[EventDate "2024.11.18"]
[EventType "swiss"]
[EventCountry "ITA"]
[SourceTitle "playchess.com"]
[Source "ChessBase"]
[SourceQuality "1"]
[TimeControl "5400+30"]

1. e4 {[%emt 0:00:04]} e6 {[%emt 0:00:08]} 2. d4 {[%emt 0:00:11]} d5 {[%emt 0:00:07]} 3. Nc3 {[%emt 0:00:07]} Be7 {[%emt 0:00:13]} 4. exd5 {[%emt 0:11:33]} exd5 {[%emt 0:00:21]} 5. Bf4 {[%emt 0:00:05]} Nf6 {[%emt 0:00:36]} 6. Bd3 {[%emt 0:01:23]} O-O {[%emt 0:00:55]} 7. Nge2 {[%emt 0:00:13]} a6 {[%emt 0:00:51]} 8. O-O {[%emt 0:00:07]} c5 {[%emt 0:01:02]} 9. dxc5 {[%emt 0:01:07]} Bxc5 {[%emt 0:00:11]} 10. h3 {[%emt 1:20:40]} Nc6 {[%emt 0:00:29]} 11. a3 {[%emt 0:00:00]} Be6 {[%emt 0:02:53]} 12. Ng3 {[%emt 0:00:00]} b5 {[%emt 0:03:51]} 13. Nce2 {[%emt 0:00:00]} h6 {[%emt 0:05:56]} 14. Qd2 {[%emt 0:00:00]} Re8 {[%emt 0:01:56]} 15. Rae1 {[%emt 0:00:00]} Bf8 {[%emt 0:10:24]} 16. c3 {[%emt 0:00:00]} Qd7 {[%emt 0:04:30]} 17. Bc2 {[%emt 0:00:00]} Rac8 {[%emt 0:06:01]} 18. Qd3 {[%emt 0:00:00]} Bd6 {[%emt 0:12:48]} 19. Qd2 {[%emt 0:00:00]} Bf8 {[%emt 0:01:15]} 20. Nd4 {[%emt 0:00:00]} Nxd4 {[%emt 0:05:11]} 21. cxd4 {[%emt 0:00:00]} Ne4 {[%emt 0:03:42]} 22. Nxe4 {[%emt 0:00:00]} dxe4 {[%emt 0:00:23]} 23. Bxe4 {[%emt 0:00:00]} Bc4 {[%emt 0:02:47]} 24. Bd3 {[%emt 0:00:00]} Bd5 {[%emt 0:01:36]} 25. Rxe8 {[%emt 0:00:00]} Rxe8 {[%emt 0:02:26]} 26. Re1 {[%emt 0:00:00]} Rxe1+ {[%emt 0:05:13]} 27. Qxe1 {[%emt 0:00:00]} Be7 {[%emt 0:02:00]} 28. Qe3 {[%emt 0:00:00]} Bf6 {[%emt 0:00:36]} 29. Be5 {[%emt 0:00:00]} Bg5 {[%emt 0:04:00]} 30. Qg3 {[%emt 0:00:00]} f6 {[%emt 0:01:39]} 31. Bf4 {[%emt 0:00:00]} Qc6 {[%emt 0:01:29]} 32. Bg6 {[%emt 0:00:00]} Qc8 {[%emt 0:04:06]} 33. Kh2 {[%emt 0:00:00]} Bf7 {[%emt 0:02:23]} 34. Bxf7+ {[%emt 0:00:00]} Kxf7 {[%emt 0:00:10]} 35. Bxg5 {[%emt 0:00:00]} hxg5 {[%emt 0:00:47]} 36. Qd3 {[%emt 0:02:19]} Qc1 {[%emt 0:01:19]} 37. Qc3 {[%emt 0:01:59]} Qf4+ {[%emt 0:01:42]} 38. Kg1 {[%emt 0:00:04]} Qe4 {[%emt 0:02:47]} 39. Qc7+ {[%emt 0:01:36]} Kg6 {[%emt 0:01:23]} 40. Qc3 {[%emt 0:00:22]} Kf7 {[%emt 0:00:08]} 41. b4 {[%emt 0:04:05]} Ke6 {[%emt 0:02:48]} 42. Qc8+ {[%emt 0:00:39]} Kf7 {[%emt 0:01:14]} 43. Qc3 {[%emt 0:03:06]} Ke6 {[%emt 0:00:12]} 44. Qc5 {[%emt 0:01:50]} Qe1+ {[%emt 0:08:02]} 45. Kh2 Qe4 {[%emt 0:00:00]} 46. Qb6+ {[%emt 0:01:23]} Ke7 {[%emt 0:00:00]} 47. Qc5+ {[%emt 0:00:29]} Ke6 {[%emt 0:00:00]} 48. g3 {[%emt 0:00:22]} Qf3 {[%emt 0:00:00]} 49. Kg1 {[%emt 0:00:08]} Qe4 {[%emt 0:00:00]} 50. Qc8+ {[%emt 0:00:18]} Ke7 {[%emt 0:00:00]} 51. Qc5+ {[%emt 0:00:46]} Ke6 {[%emt 0:00:00]} 52. Qb6+ {[%emt 0:00:18]} Ke7 {[%emt 0:00:00]} 53. Qa7+ {[%emt 0:01:06]} Kd8 {[%emt 0:00:00]} 54. Qxg7 {[%emt 0:00:35]} Qe1+ {[%emt 0:00:40]} 55. Kg2 {[%emt 0:00:06]} Qe4+ {[%emt 0:00:07]} 56. Kh2 {[%emt 0:00:09]} Qxd4 {[%emt 0:00:08]} 57. Qf8+ {[%emt 0:00:02]} Kd7 {[%emt 0:00:27]} 58. Qf7+ {[%emt 0:00:38]} Kd8 {[%emt 0:00:13]} 59. Kg1 {[%emt 0:00:34]} Qd1+ {[%emt 0:00:08]} 60. Kg2 {[%emt 0:00:00]} Qd4 {[%emt 0:00:26]} 61. Qf8+ {[%emt 0:01:11]} Kd7 {[%emt 0:00:15]} 62. Qa8 {[%emt 0:00:29]} Qd6 {[%emt 0:01:02]} 63. Qb7+ {[%emt 0:00:19]} Ke8 {[%emt 0:00:41]} 64. Qc8+ {[%emt 0:00:05]} Kf7 {[%emt 0:00:08]} 65. Qc5 {[%emt 0:00:23]} Qe6 {[%emt 0:01:18]} 66. Qc7+ {[%emt 0:00:21]} Kg6 {[%emt 0:00:13]} 67. Qc2+ {[%emt 0:00:03]} Kg7 {[%emt 0:00:09]} 68. Qd3 {[%emt 0:00:11]} Kh6 {[%emt 0:00:30]} 69. Qf3 {[%emt 0:00:17]} Qd6 {[%emt 0:00:37]} 70. Qe4 {[%emt 0:00:14]} Qb6 {[%emt 0:01:15]} 71. Kf3 {[%emt 0:00:45]} a5 {[%emt 0:00:36]} 72. Kg2 {[%emt 0:02:33]} axb4 {[%emt 0:01:06]} 73. axb4 {[%emt 0:00:33]} Qd6 {[%emt 0:01:49]} 74. Qf5 {[%emt 0:00:39]} Qc6+ {[%emt 0:00:20]} 75. Kh2 {[%emt 0:00:09]} Kg7 {[%emt 0:00:27]} 76. Qg4 {[%emt 0:00:46]} Qc4 {[%emt 0:01:09]} 77. Kg2 {[%emt 0:00:40]} Qd5+ {[%emt 0:00:09]} 78. Kh2 {[%emt 0:00:05]} Qc4 {[%emt 0:00:18]} 79. Qxc4 {[%emt 0:00:43]} bxc4 {[%emt 0:00:08]} 80. b5 {[%emt 0:00:01]} c3 {[%emt 0:00:05]} 81. b6 {[%emt 0:00:02]} c2 {[%emt 0:00:04]} 82. b7 {[%emt 0:00:03]} c1=Q {[%emt 0:00:09]} 83. b8=Q {[%emt 0:00:04]} Qc5 {[%emt 0:00:27]} 84. Qb7+ {[%emt 0:00:10]} Kg6 {[%emt 0:00:21]} 85. Kg2 {[%emt 0:00:17]} Qd4 {[%emt 0:00:22]} 86. Qc6 {[%emt 0:00:10]} Kg7 {[%emt 0:00:33]} 87. Qf3 {[%emt 0:00:12]} Qb4 {[%emt 0:00:25]} 88. Qf5 {[%emt 0:00:39]} Qb7+ {[%emt 0:00:11]} 89. Kg1 {[%emt 0:00:17]} Qb4 {[%emt 0:00:12]} 90. Qg4 {[%emt 0:00:35]} Qb1+ {[%emt 0:00:16]} 91. Kg2 {[%emt 0:00:05]} Qb7+ {[%emt 0:00:07]} 92. Qf3 {[%emt 0:00:19]} Qb4 {[%emt 0:00:07]} 93. Kh2 {[%emt 0:00:06]} Qd4 {[%emt 0:00:38]} 94. Qe2 {[%emt 0:00:11]} Qb4 {[%emt 0:00:20]} 95. Qe6 {[%emt 0:00:20]} Qb2 {[%emt 0:00:31]} 96. Qe7+ {[%emt 0:00:28]} Kg6 {[%emt 0:00:20]} 97. Qe4+ {[%emt 0:00:12]} Kg7 {[%emt 0:00:06]} 98. Kg2 {[%emt 0:00:11]} Qb5 {[%emt 0:01:00]} 99. Qe7+ {[%emt 0:00:27]} Kg6 {[%emt 0:00:12]} 100. Qe4+ {[%emt 0:00:05]} Kg7 {[%emt 0:00:11]} 101. h4 {[%emt 0:00:41]} gxh4 {[%emt 0:00:12]} 102. Qxh4 {[%emt 0:00:06]} Qd5+ {[%emt 0:00:18]} 103. Kh2 {[%emt 0:00:16]} Qf3 {[%emt 0:00:29]} 104. Qd4 {[%emt 0:00:11]} Qe2 {[%emt 0:00:38]} 105. Kg2 {[%emt 0:00:18]} Qa6 {[%emt 0:00:43]} 106. Qd7+ {[%emt 0:00:15]} Kg6 {[%emt 0:00:23]} 107. Qe8+ {[%emt 0:00:09]} Kg7 {[%emt 0:00:07]} 108. Qe7+ {[%emt 0:00:02]} Kg6 {[%emt 0:00:09]} 109. Qe4+ {[%emt 0:00:04]} Kg7 {[%emt 0:00:10]} 110. g4 {[%emt 0:00:06]} Qd6 {[%emt 0:00:18]} 111. Kh3 {[%emt 0:00:07]} Qd1 {[%emt 0:00:24]} 112. Qg2 {[%emt 0:00:11]} Qd3+ {[%emt 0:00:11]} 113. f3 {[%emt 0:00:26]} Qe3 {[%emt 0:00:11]} 114. Qg3 {[%emt 0:00:37]} Qh6+ {[%emt 0:00:11]} 115. Kg2 {[%emt 0:00:05]} Qd2+ {[%emt 0:00:07]} 116. Qf2 {[%emt 0:00:03]} Qf4 {[%emt 0:00:20]} 117. Qe2 {[%emt 0:00:07]} Qc1 {[%emt 0:00:27]} 118. Qe7+ {[%emt 0:00:08]} Kg6 {[%emt 0:00:07]} 119. Qe2 {[%emt 0:00:15]} Kg7 {[%emt 0:00:07]} 120. Qf2 {[%emt 0:00:48]} Qd1 {[%emt 0:00:18]} 121. Kg3 {[%emt 0:00:05]} Qd3 {[%emt 0:00:41]} 122. Qa7+ {[%emt 0:00:18]} Kh6 {[%emt 0:00:31]} 123. Qf7 {[%emt 0:02:00]} Qd4 {[%emt 0:01:00]} 124. Qf8+ {[%emt 0:02:17]} Kh7 {[%emt 0:00:21]} 125. Qe7+ {[%emt 0:00:20]} Kg8 {[%emt 0:00:30]} 126. Qe8+ {[%emt 0:00:06]} Kg7 {[%emt 0:00:08]} 127. Qe7+ {[%emt 0:00:04]} Kg8 {[%emt 0:00:08]} 128. Qe6+ {[%emt 0:03:56]} Kg7 {[%emt 0:00:10]} 129. Qe7+ {[%emt 0:00:52]} 1/2-1/2

[Event "FIDE WCCC Open-10 2024"]
[Site "Montesilvano"]
[Date "2024.11.18"]
[Round "4.3"]
[White "Yrysov, Timur"]
[Black "Mariani, Kim Paul"]
[Result "1/2-1/2"]
[ECO "B23"]
[WhiteElo "1604"]
[BlackElo "1814"]
[Annotator "NA RC"]
[PlyCount "80"]
[EventDate "2024.11.18"]
[EventType "swiss"]
[EventCountry "ITA"]
[SourceTitle "playchess.com"]
[Source "ChessBase"]
[SourceQuality "1"]
[TimeControl "5400+30"]

1. e4 {[%emt 0:00:34]} c5 {[%emt 0:00:25]} 2. Nc3 {[%emt 0:00:28]} e6 {[%emt 0:02:10]} 3. d4 {[%emt 0:03:04]} cxd4 {[%emt 0:00:37]} 4. Qxd4 {[%emt 0:00:54]} Nc6 {[%emt 0:01:08]} 5. Qd2 {[%emt 0:04:49]} Bb4 {[%emt 0:04:25]} 6. a3 {[%emt 0:01:11]} Ba5 {[%emt 0:00:17]} 7. b4 {[%emt 0:01:27]} Bb6 {[%emt 0:01:01]} 8. Nb5 {[%emt 0:08:37]} d5 {[%emt 0:04:39]} 9. exd5 {[%emt 0:07:50]} exd5 {[%emt 0:00:37]} 10. Bb2 {[%emt 0:15:10]} Nf6 {[%emt 0:06:31]} 11. Bd3 {[%emt 0:06:47]} O-O {[%emt 0:02:52]} 12. Ne2 {[%emt 0:05:07]} a6 {[%emt 0:15:34]} 13. Nbd4 {[%emt 0:03:48]} Re8 {[%emt 0:01:57]} 14. Nf5 {[%emt 0:13:10]} Ne5 {[%emt 0:04:16]} 15. Nfg3 {[%emt 0:25:04]} Neg4 {[%emt 0:37:11]} 16. O-O {[%emt 0:00:00]} Ne3 {[%emt 0:03:09]} 17. Rfe1 {[%emt 0:00:00]} Nfg4 {[%emt 0:02:16]} 18. Bd4 {[%emt 0:00:00]} Bxd4 {[%emt 0:01:07]} 19. Nxd4 {[%emt 0:00:00]} Nc4 {[%emt 0:00:23]} 20. Bxc4 {[%emt 0:00:00]} dxc4 {[%emt 0:01:02]} 21. Rxe8+ {[%emt 0:00:00]} Qxe8 {[%emt 0:00:01]} 22. h3 {[%emt 0:00:00]} Nf6 {[%emt 0:00:09]} 23. Re1 {[%emt 0:00:00]} Qf8 {[%emt 0:00:22]} 24. Qc3 {[%emt 0:00:00]} b5 {[%emt 0:00:34]} 25. Qf3 {[%emt 0:00:00]} Bd7 {[%emt 0:00:48]} 26. Nh5 {[%emt 0:00:00]} Nxh5 {[%emt 0:00:31]} 27. Qxh5 {[%emt 0:00:00]} Re8 {[%emt 0:00:07]} 28. Rxe8 {[%emt 0:00:00]} Qxe8 {[%emt 0:00:02]} 29. Qe2 {[%emt 0:00:00]} Qd8 {[%emt 0:02:14]} 30. Qe5 {[%emt 0:00:00]} h6 {[%emt 0:00:51]} 31. Qd6 {[%emt 0:00:45]} Qe8 {[%emt 0:00:38]} 32. Nf3 {[%emt 0:01:39]} Bf5 {[%emt 0:01:55]} 33. c3 {[%emt 0:00:50]} Be4 {[%emt 0:01:42]} 34. Qf4 {[%emt 0:03:51]} Bd3 {[%emt 0:00:46]} 35. Qe3 {[%emt 0:00:44]} Qd8 {[%emt 0:01:28]} 36. Nd4 {[%emt 0:00:25]} Qf6 {[%emt 0:00:57]} 37. Qe8+ {[%emt 0:02:04]} Kh7 {[%emt 0:00:10]} 38. Qe3 {[%emt 0:00:18]} Qg6 {[%emt 0:00:33]} 39. Qg3 {[%emt 0:00:35]} Qh5 {[%emt 0:00:43]} 40. Qf3 {[%emt 0:00:10]} Qg5 {[%emt 0:03:01]} 1/2-1/2